lending/lending_fUSD_20240703
["ID","MTS","AMOUNT","RATE_DAILY","PERIOD"]
[330972736,1719976278523,-468.28412571,0.00021917,4]
[330972737,1719976278539,-1080.79,0.00021917,4]
[330972738,1719976278549,-500.0,0.00021917,4]
[330972739,1719976278558,-500.0,0.00021917,4]
[330972740,1719976278568,-1080.79,0.00021917,4]
[330972741,1719976278578,-500.0,0.00021917,4]
[330972742,1719976278587,-1080.79,0.00021917,4]
[330972743,1719976278596,-500.0,0.00021917,4]
[330972744,1719976278606,-500.0,0.00021917,4]
[330972745,1719976278615,-500.0,0.00021917,4]
[330972746,1719976278624,-500.0,0.00021917,4]
[330972747,1719976278634,-500.0,0.00021917,4]
[330972748,1719976278643,-500.0,0.00021917,4]
[330972749,1719976278652,-500.0,0.00021917,4]
[330972750,1719976278661,-1080.79,0.00021917,4]
[330972751,1719976278670,-500.0,0.00021917,4]
[330972752,1719976278680,-500.0,0.00021917,4]
[330972753,1719976278689,-500.0,0.00021917,4]
[330972754,1719976278698,-500.0,0.00021917,4]
[330972755,1719976278709,-500.0,0.00021917,4]
[330972756,1719976278718,-500.0,0.00021917,4]
[330972757,1719976278727,-500.0,0.00021917,4]
[330972758,1719976278737,-1080.79,0.00021917,4]
[330972759,1719976278746,-500.0,0.00021917,4]
[330972760,1719976278757,-500.0,0.00021917,4]
[330972761,1719976278766,-500.0,0.00021917,4]
[330972762,1719976278776,-500.0,0.00021917,4]
[330972763,1719976278787,-500.0,0.00021917,4]
[330972764,1719976278797,-500.0,0.00021917,4]
[330972765,1719976278806,-500.0,0.00021917,4]
[330972766,1719976278815,-500.0,0.00021917,4]
[330972767,1719976278824,-1080.79,0.00021917,4]
[330972768,1719976278833,-500.0,0.00021917,4]
[330972769,1719976278843,-500.0,0.00021917,4]
[330972770,1719976278852,-500.0,0.00021917,4]
[330972771,1719976278862,-500.0,0.00021917,4]
[330972772,1719976278871,-500.0,0.00021917,4]
[330972773,1719976278880,-500.0,0.00021917,4]
[330972774,1719976278890,-500.0,0.00021917,4]
[330972775,1719976278899,-500.0,0.00021917,4]
[330972776,1719976278909,-500.0,0.00021917,4]
[330972777,1719976278921,-500.0,0.00021917,4]
[330972778,1719976278930,-500.0,0.00021917,4]
[330972779,1719976278940,-500.0,0.00021917,4]
[330972780,1719976278950,-500.0,0.00021917,4]
[330972781,1719976278959,-500.0,0.00021917,4]
[330972782,1719976278969,-500.0,0.00021917,4]
[330972783,1719976278979,-500.0,0.00021917,4]
[330972784,1719976278988,-500.0,0.00021917,4]
[330972785,1719976278998,-500.0,0.00021917,4]
[330972786,1719976279007,-1080.79,0.00021917,4]
[330972787,1719976279017,-500.0,0.00021917,4]
[330972788,1719976279030,-500.0,0.00021917,4]
[330972789,1719976279040,-500.0,0.00021917,4]
[330972790,1719976279050,-500.0,0.00021917,4]
[330972791,1719976279059,-632.88858252,0.00021917,4]
[330972792,1719976279069,-1080.79,0.00021917,4]
[330972793,1719976279078,-491.85446466,0.00021917,4]
[330972794,1719976279088,-500.0,0.00021917,4]
[330972795,1719976279097,-500.0,0.00021917,4]
[330972796,1719976279107,-354.33427806,0.00021917,4]
[330972797,1719976279116,-1080.79,0.00021917,4]
[330972798,1719976279125,-1080.79,0.00021917,4]
[330972799,1719976279134,-1080.79,0.00021917,4]
[330972800,1719976279144,-500.0,0.00021917,4]
[330972801,1719976279153,-500.0,0.00021917,4]
[330972802,1719976279163,-1080.79,0.00021917,4]
[330972803,1719976279172,-500.0,0.00021917,4]
[330972804,1719976279181,-500.0,0.00021917,4]
[330972805,1719976279191,-500.0,0.00021917,4]
[330972806,1719976279201,-1080.79,0.00021917,4]
[330972807,1719976279211,-500.0,0.00021917,4]
[330972808,1719976279223,-1080.79,0.00021917,4]
[330972809,1719976279232,-500.0,0.00021917,4]
[330972810,1719976279242,-500.0,0.00021917,4]
[330972811,1719976279255,-1080.79,0.00021917,4]
[330972812,1719976279264,-577.35054936,0.00021917,4]
[330972813,1719976279274,-500.0,0.00021917,4]
[330972814,1719976279289,-500.0,0.00021917,4]
[330972815,1719976279299,-500.0,0.00021917,4]
[330972816,1719976279309,-500.0,0.00021917,4]
[330972817,1719976279319,-500.0,0.00021917,4]
[330972818,1719976279328,-1080.79,0.00021917,4]
[330972819,1719976279339,-500.0,0.00021917,4]
[330972820,1719976279350,-1080.79,0.00021917,4]
[330972821,1719976279360,-500.0,0.00021917,4]
[330972822,1719976279370,-500.0,0.00021917,4]
[330972823,1719976279380,-500.0,0.00021917,4]
[330972824,1719976279389,-292.39991796,0.00021917,4]
[330972825,1719976279399,-1080.79,0.00021917,4]
[330972826,1719976279409,-500.0,0.00021917,4]
[330972827,1719976279419,-500.0,0.00021917,4]
[330972828,1719976279429,-1080.79,0.00021917,4]
[330972829,1719976279439,-500.0,0.00021917,4]
[330972830,1719976279448,-500.0,0.00021917,4]
[330972831,1719976279459,-500.0,0.00021917,4]
[330972832,1719976279468,-1080.79,0.00021917,4]
[330972833,1719976279478,-500.0,0.00021917,4]
[330972834,1719976279487,-500.0,0.00021917,4]
[330972835,1719976279497,-500.0,0.00021917,4]
[330972836,1719976279507,-500.0,0.00021917,4]
[330972837,1719976279516,-1080.79,0.00021917,4]
[330972838,1719976279529,-500.0,0.00021917,4]
[330972839,1719976279539,-500.0,0.00021917,4]
[330972840,1719976279548,-1080.79,0.00021917,4]
[330972841,1719976279558,-500.0,0.00021917,4]
[330972842,1719976279567,-500.0,0.00021917,4]
[330972843,1719976279577,-500.0,0.00021917,4]
[330972844,1719976279587,-500.0,0.00021917,4]
[330972845,1719976279596,-500.0,0.00021917,4]
[330972846,1719976279606,-1080.82,0.00021917,4]
[330972847,1719976279615,-500.0,0.00021917,4]
[330972848,1719976279624,-500.0,0.00021917,4]
[330972849,1719976279634,-617.99398714,0.00021917,4]
[330972850,1719976279643,-500.0,0.00021917,4]
[330972851,1719976279653,-500.0,0.00021917,4]
[330972852,1719976279662,-500.0,0.00021917,4]
[330972853,1719976279671,-377.47,0.00021917,4]
[330972854,1719976279681,-500.0,0.00021917,4]
[330972855,1719976279690,-500.0,0.00021917,4]
[330972856,1719976279699,-500.0,0.00021917,4]
[330972857,1719976279708,-500.0,0.00021917,4]
[330972858,1719976279717,-500.0,0.00021917,4]
[330972859,1719976279727,-500.0,0.00021917,4]
[330972860,1719976279736,-500.0,0.00021917,4]
[330972861,1719976279746,-500.0,0.00021917,4]
[330972862,1719976279755,-500.0,0.00021917,4]
[330972863,1719976279765,-500.0,0.00021917,4]
[330972864,1719976279774,-500.0,0.00021917,4]
[330972865,1719976279786,-500.0,0.00021917,4]
[330972866,1719976279795,-500.0,0.00021917,4]
[330972867,1719976279804,-583.75388651,0.00021917,4]
[330972868,1719976279813,-500.0,0.00021917,4]
[330972869,1719976279822,-500.0,0.00021917,4]
[330972870,1719976279831,-500.0,0.00021917,4]
[330972871,1719976279841,-500.0,0.00021917,4]
[330972872,1719976279850,-500.0,0.00021917,4]
[330972873,1719976279860,-500.0,0.00021917,4]
[330972874,1719976279870,-500.0,0.00021917,4]
[330972875,1719976279879,-500.0,0.00021917,4]
[330972876,1719976279888,-320.47784555,0.00021917,4]
[330972877,1719976279899,-500.0,0.00021917,4]
[330972878,1719976279908,-500.0,0.00021917,4]
[330972879,1719976279918,-500.0,0.00021917,4]
[330972880,1719976279927,-500.0,0.00021917,4]
[330972881,1719976279936,-500.0,0.00021917,4]
[330972882,1719976279946,-500.0,0.00021917,4]
[330972883,1719976279955,-500.0,0.00021917,4]
[330972884,1719976279966,-500.0,0.00021917,4]
[330972885,1719976279975,-500.0,0.00021917,4]
[330972886,1719976279986,-500.0,0.00021917,4]
[330972887,1719976279995,-500.0,0.00021917,4]
[330972888,1719976280006,-500.0,0.00021917,4]
[330972889,1719976280016,-500.0,0.00021917,4]
[330972890,1719976280028,-447.23105399,0.00021917,4]
[330972891,1719976280037,-500.0,0.00021917,4]
[330972892,1719976280046,-500.0,0.00021917,4]
[330972893,1719976280055,-500.0,0.00021917,4]
[330972894,1719976280064,-500.0,0.00021917,4]
[330972895,1719976280073,-500.0,0.00021917,4]
[330972896,1719976280082,-500.0,0.00021917,4]
[330972897,1719976280092,-500.0,0.00021917,4]
[330972898,1719976280101,-500.0,0.00021917,4]
[330972899,1719976280111,-500.0,0.00021917,4]
[330972900,1719976280120,-500.0,0.00021917,4]
[330972901,1719976280129,-500.0,0.00021917,4]
[330972902,1719976280139,-500.0,0.00021917,4]
[330972903,1719976280148,-500.0,0.00021917,4]
[330972904,1719976280158,-500.0,0.00021917,4]
[330972905,1719976280167,-500.0,0.00021917,4]
[330972906,1719976280176,-500.0,0.00021917,4]
[330972907,1719976280185,-450.88621932,0.00021917,4]
[330972908,1719976280195,-500.0,0.00021917,4]
[330972909,1719976280204,-500.0,0.00021917,4]
[330972910,1719976280215,-500.0,0.00021917,4]
[330972911,1719976280227,-500.0,0.00021917,4]
[330972912,1719976280236,-500.0,0.00021917,4]
[330972913,1719976280245,-500.0,0.00021917,4]
[330972914,1719976280255,-500.0,0.00021917,4]
[330972915,1719976280266,-500.0,0.00021917,4]
[330972916,1719976280278,-183.58306541,0.00021917,4]
[330972917,1719976280287,-500.0,0.00021917,4]
[330972918,1719976280296,-500.0,0.00021917,4]
[330972919,1719976280306,-500.0,0.00021917,4]
[330972920,1719976280315,-500.0,0.00021917,4]
[330972921,1719976280325,-500.0,0.00021917,4]
[330972922,1719976280334,-357.04570174,0.00021917,4]
[330972923,1719976280344,-500.0,0.00021917,4]
[330972924,1719976280354,-500.0,0.00021917,4]
[330972925,1719976280364,-500.0,0.00021917,4]
[330972926,1719976280373,-500.0,0.00021917,4]
[330972927,1719976280383,-500.0,0.00021917,4]
[330972928,1719976280392,-500.0,0.00021917,4]
[330972929,1719976280401,-500.0,0.00021917,4]
[330972930,1719976280410,-500.0,0.00021917,4]
[330972931,1719976280419,-500.0,0.00021917,4]
[330972932,1719976280428,-500.0,0.00021917,2]
[330972933,1719976280437,-500.0,0.00021917,4]
[330972934,1719976280447,-500.0,0.00021917,4]
[330972935,1719976280456,-500.0,0.00021917,2]
[330972936,1719976280465,-500.0,0.00021917,4]
[330972937,1719976280474,-379.72,0.00021917,4]
[330972938,1719976280484,-500.0,0.00021917,4]
[330972939,1719976280493,-500.0,0.00021917,2]
[330972940,1719976280502,-500.0,0.00021917,4]
[330972941,1719976280511,-500.0,0.00021917,2]
[330972942,1719976280521,-500.0,0.00021917,4]
[330972943,1719976280534,-500.0,0.00021917,4]
[330972944,1719976280544,-500.0,0.00021917,4]
[330972945,1719976280553,-500.0,0.00021917,2]
[330972946,1719976280563,-337.67165064,0.00021917,4]
[330972947,1719976280572,-500.0,0.00021917,2]
[330972948,1719976280586,-500.0,0.00021917,2]
[330972949,1719976280658,-475.04595387,0.00021917,2]
[330972950,1719976280669,-500.0,0.00021917,4]
[330972951,1719976280678,-500.0,0.00021917,4]
[330972952,1719976280687,-1387.74,0.00021917,4]
[330972953,1719976280696,-500.0,0.00021917,4]
[330972954,1719976280705,-500.0,0.00021917,4]
[330972955,1719976280715,-500.0,0.00021917,4]
[330972956,1719976280724,-485.31405931,0.00021917,4]
[330972957,1719976280732,-1387.74,0.00021917,4]
[330972958,1719976280742,-500.0,0.00021917,4]
[330972959,1719976280751,-500.0,0.00021917,4]
[330972960,1719976280760,-1387.74,0.00021917,4]
[330972961,1719976280769,-500.0,0.00021917,4]
[330972962,1719976280782,-500.0,0.00021917,4]
[330972963,1719976280791,-500.0,0.00021917,4]
[330972964,1719976280799,-500.0,0.00021917,4]
[330972965,1719976280808,-500.0,0.00021917,4]
[330972966,1719976280817,-500.0,0.00021917,4]
[330972967,1719976280826,-500.0,0.00021917,4]
[330972968,1719976280835,-500.0,0.00021917,4]
[330972969,1719976280844,-400.71555308,0.00021917,4]
[330972970,1719976280853,-1387.74,0.00021917,4]
[330972971,1719976280863,-500.0,0.00021917,4]
[330972972,1719976280871,-500.0,0.00021917,4]
[330972973,1719976280880,-500.0,0.00021917,4]
[330972974,1719976280890,-500.0,0.00021917,4]
[330972975,1719976280900,-448.95459115,0.00021917,4]
[330972976,1719976280909,-500.0,0.00021917,4]
[330972977,1719976280919,-500.0,0.00021917,4]
[330972978,1719976280928,-500.0,0.00021917,4]
[330972979,1719976280937,-500.0,0.00021917,4]
[330972980,1719976280946,-500.0,0.00021917,4]
[330972981,1719976280955,-500.0,0.00021917,4]
[330972982,1719976280965,-1387.74,0.00021917,4]
[330972983,1719976280974,-500.0,0.00021917,4]
[330972984,1719976280983,-500.0,0.00021917,4]
[330972985,1719976280992,-500.0,0.00021917,4]
[330972986,1719976281002,-500.0,0.00021917,4]
[330972987,1719976281011,-500.0,0.00021917,4]
[330972988,1719976281020,-500.0,0.00021917,4]
[330972989,1719976281033,-1387.74,0.00021917,4]
[330972990,1719976281042,-500.0,0.00021917,4]
[330972991,1719976281051,-500.0,0.00021917,4]
[330972992,1719976281060,-500.0,0.00021917,4]
[330972993,1719976281069,-500.0,0.00021917,4]
[330972994,1719976281078,-500.0,0.00021917,4]
[330972995,1719976281087,-500.0,0.00021917,4]
[330972996,1719976281097,-1280.88,0.00021917,4]
[330972997,1719976281107,-500.0,0.00021917,4]
[330972998,1719976281116,-500.0,0.00021917,4]
[330972999,1719976281126,-500.0,0.00021917,4]
[330973000,1719976281135,-500.0,0.00021917,4]
[330973001,1719976281144,-500.0,0.00021917,4]
[330973002,1719976281153,-500.0,0.00021917,4]
[330973003,1719976281163,-500.0,0.00021917,4]
[330973004,1719976281172,-500.0,0.00021917,4]
[330973005,1719976281181,-1387.74,0.00021917,4]
[330973006,1719976281190,-500.0,0.00021917,4]
[330973007,1719976281199,-500.0,0.00021917,4]
[330973008,1719976281208,-500.0,0.00021917,4]
[330973009,1719976281220,-1280.88,0.00021917,4]
[330973010,1719976281229,-500.0,0.00021917,4]
[330973011,1719976281238,-396.24918252,0.00021917,4]
[330973012,1719976281249,-500.0,0.00021917,4]
[330973013,1719976281258,-1387.74,0.00021917,4]
[330973014,1719976281269,-289.68809096,0.00021917,4]
[330973015,1719976281282,-606.26,0.00021917,4]
[330973016,1719976281291,-856.89692558,0.00021917,4]
[330973017,1719976281804,-423.98307442,0.00021917,4]
[330973018,1719976281814,-1387.74,0.00021917,4]
[330973019,1719976281823,-606.26,0.00021917,4]
[330973020,1719976281833,-1280.88,0.00021917,4]
[330973021,1719976281842,-1387.74,0.00021917,4]
[330973022,1719976281853,-606.26,0.00021917,4]
[330973023,1719976281862,-1280.88,0.00021917,4]
[330973024,1719976281872,-1387.74,0.00021917,4]
[330973025,1719976281881,-606.26,0.00021917,4]
[330973026,1719976281891,-615.70062819,0.00021917,4]
[330973027,1719976281900,-1387.74,0.00021917,4]
[330973028,1719976281910,-606.26,0.00021917,4]
[330973029,1719976281919,-1280.88,0.00021917,4]
[330973030,1719976281928,-500.0,0.00021917,4]
[330973031,1719976281937,-837.78214482,0.00021917,4]
[330973032,1719976281954,-302.23,0.00021917,4]
[330973033,1719976281965,-247.72785518,0.00021917,4]
[330973034,1719976281975,-606.26,0.00021917,4]
[330973035,1719976281983,-500.0,0.00021917,4]
[330973036,1719976281994,-1280.88,0.00021917,4]
[330973037,1719976282005,-1387.74,0.00021917,4]
[330973038,1719976282015,-500.0,0.00021917,4]
[330973039,1719976282025,-1280.88,0.00021917,4]
[330973040,1719976282037,-606.26,0.00021917,4]
[330973041,1719976282047,-500.0,0.00021917,4]
[330973042,1719976282057,-1387.74,0.00021917,4]
[330973043,1719976282066,-606.26,0.00021917,4]
[330973044,1719976282075,-1280.88,0.00021917,4]
[330973045,1719976282084,-500.0,0.00021917,4]
[330973046,1719976282093,-500.0,0.00021917,4]
[330973047,1719976282102,-500.0,0.00021917,4]
[330973048,1719976282111,-1387.74,0.00021917,4]
[330973049,1719976282121,-606.26,0.00021917,4]
[330973050,1719976282131,-1100.49813431,0.00021917,4]
[330973051,1719976282147,-180.38186569,0.00021917,4]
[330973052,1719976282157,-500.0,0.00021917,4]
[330973053,1719976282167,-500.0,0.00021917,4]
[330973054,1719976282176,-500.0,0.00021917,4]
[330973055,1719976282186,-500.0,0.00021917,4]
[330973056,1719976282195,-500.0,0.00021917,4]
[330973057,1719976282205,-500.0,0.00021917,4]
[330973058,1719976282215,-500.0,0.00021917,4]
[330973059,1719976282228,-118.88182989,0.00021917,4]
[330973060,1719976282650,-654.24,0.00016315,2]
[330973061,1719976282661,-840.87925743,0.00016315,2]
[330973062,1719976282671,-216.64,0.0001727,2]
[330973063,1719976282680,-438.43353309,0.00017444,2]
[330973064,1719976282688,-155.19621563,0.00017533,2]
[330973065,1719976282698,-150.0,0.00019982,2]
[330973066,1719976282707,-457.80753797,0.0002,2]
[330973067,1719976282716,-457.80753797,0.0002,2]
[330973068,1719976282725,-457.80753797,0.0002,2]
[330973069,1719976282735,-225.0,0.000218,2]
[330973070,1719976282743,-150.0,0.00021815,2]
[330973071,1719976282752,-273.47837994,0.0002184,2]
[330973072,1719976282764,-226.52162006,0.0002184,2]
[330973073,1719976282773,-358.29859008,0.0002184,2]
[330973074,1719976282788,-141.70140992,0.0002184,2]
[330973075,1719976282798,-381.11817011,0.00021917,4]
[330973076,1719976282807,-1387.74,0.00021917,4]
[330973077,1719976282816,-70.38121064,0.00021917,4]
[330973078,1719976282829,-1210.49878936,0.00021917,4]
[330973079,1719976282838,-606.26,0.00021917,4]
[330973080,1719976282848,-500.0,0.00021917,4]
[330973081,1719976282857,-500.0,0.00021917,4]
[330973082,1719976282867,-500.0,0.00021917,4]
[330973083,1719976282877,-5.29956656,0.00021917,4]
[330973084,1719976282891,-494.70043344,0.00021917,4]
[330973085,1719976282900,-1387.74,0.00021917,4]
[330973086,1719976282909,-277.63356656,0.00021917,4]
[330973087,1719976282959,-155.0,0.00019964,2]
[330973088,1719976282968,-452.97134023,0.0002,2]
[330973089,1719976321257,-204.5407,0.000149,2]
[330973090,1719976321289,-155.0,0.00015832,2]
[330973091,1719976321327,-18.20032299,0.000173,3]
[330973092,1719976321364,-250.79967701,0.000173,3]
[330973093,1719976321400,-126.94134598,0.00017566,2]
[330973094,1719976321437,-201.8789914,0.00017566,2]
[330973095,1719976321472,-175.86203159,0.000177,5]
[330973096,1719976321514,-377.74102299,0.000177,5]
[330973097,1719976321554,-377.74102299,0.000177,5]
[330973098,1719976321592,-377.74102299,0.000177,5]
[330973099,1719976321629,-377.74102299,0.000177,5]
[330973100,1719976321669,-377.74102299,0.000177,5]
[330973101,1719976321711,-377.74102299,0.000177,5]
[330973102,1719976321752,-377.74102299,0.000177,5]
[330973103,1719976321794,-377.74102299,0.000177,5]
[330973104,1719976322082,-377.74102299,0.000177,5]
[330973105,1719976322118,-377.74102299,0.000177,5]
[330973106,1719976322162,-300.0,0.00017699,2]
[330973107,1719976322193,-77.74102299,0.000177,5]
[330973108,1719976322228,-377.74102299,0.000177,5]
[330973109,1719976322281,-377.74102299,0.000177,5]
[330973110,1719976357872,-6696.0,0.000177,5]
[330973114,1719977396968,-498.61815035,0.00016,2]
[330973115,1719977397006,-498.61815035,0.00016,2]
[330973116,1719977397050,-498.61815035,0.00016,2]
[330973117,1719977397087,-498.61815035,0.00016,2]
[330973118,1719977397186,-498.61815035,0.00016,2]
[330973119,1719977397220,-498.61815035,0.00016,2]
[330973120,1719977397259,-498.61815035,0.00016,2]
[330973122,1719977397294,-498.61815035,0.00016,2]
[330973124,1719977397336,-498.61815035,0.00016,2]
[330973126,1719977397370,-314.40133084,0.00016,2]
[330973127,1719977397404,-198.03531601,0.00016,2]
[330973128,1719977397435,-199.48364604,0.00016012,2]
[330973129,1719977397465,-101.0991883,0.00016112,2]
[330973130,1719977397503,-333.4008117,0.00016112,2]
[330973135,1719977436521,-250.0,0.000157,2]
[330973139,1719977436532,-212.71975106,0.000157,2]
[330973140,1719977436545,-37.28024894,0.000157,2]
[330973141,1719977436558,-250.0,0.000157,2]
[330973142,1719977436569,-250.0,0.000157,2]
[330973143,1719977436578,-250.0,0.000157,2]
[330973145,1719977436588,-250.0,0.000157,2]
[330973148,1719977436600,-336.7,0.000157,2]
[330973151,1719977436610,-1210.09823483,0.000157,2]
[330973153,1719977436622,-664.57727663,0.000157,2]
[330973155,1719977436640,-3134.95346662,0.000157,2]
[330973156,1719977436650,-2490.37877134,0.00017259,2]
[330973157,1719977436663,-2000.0,0.00017259,2]
[330973158,1719977436675,-509.62122866,0.00017259,2]
[330973159,1719977436684,-300.0,0.00017698,2]
[330973160,1719977436695,-1538.20940679,0.000177,2]
[330973161,1719977436708,-3102.8768214,0.000177,2]
[330973162,1719977436718,-199.48364603,0.00017708,2]
[330973163,1719977436728,-500.0,0.00017807,2]
[330973164,1719977436738,-1959.07,0.00017808,2]
[330973165,1719977436748,-253.43,0.00017818,2]
[330973166,1719977436758,-150.99,0.00017818,2]
[330973167,1719977436768,-1903.22472733,0.00017889,2]
[330973168,1719977436778,-250.0,0.00017966,2]
[330973169,1719977436788,-10000.0,0.00018,2]
[330973170,1719977436798,-872.65,0.00018017,2]
[330973171,1719977436808,-218.58,0.00018022,2]
[330973172,1719977436820,-156.17,0.00018042,2]
[330973173,1719977436830,-1000.0,0.00018199,2]
[330973174,1719977436840,-156.17,0.0001823,2]
[330973175,1719977436850,-434.5,0.00018375,2]
[330973176,1719977436861,-156.17,0.00018418,2]
[330973177,1719977436871,-240.15,0.00018506,2]
[330973178,1719977436881,-152.26339483,0.00018548,2]
[330973179,1719977436891,-150.45550808,0.00018552,2]
[330973180,1719977436901,-153.54641665,0.00018561,2]
[330973181,1719977436911,-647.15955924,0.00018591,2]
[330973182,1719977436920,-156.17,0.00018606,2]
[330973183,1719977436931,-153.58809814,0.00018606,2]
[330973184,1719977436941,-13125.84066276,0.00018658,2]
[330973185,1719977436955,-8616.49599017,0.00018658,2]
[330973186,1719977436965,-813.0,0.00018668,2]
[330973187,1719977436974,-447.809,0.00018668,2]
[330973188,1719977436983,-1304.0,0.00018668,2]
[330973189,1719977436993,-2416.0,0.00018668,2]
[330973190,1719977437003,-283.0,0.00018668,2]
[330973191,1719977437013,-1987.0,0.00018668,2]
[330973192,1719977437023,-3206.0,0.00018668,2]
[330973193,1719977437032,-548.0,0.00018668,2]
[330973194,1719977437042,-5176.0,0.00018668,2]
[330973195,1719977437051,-1663.0,0.00018668,2]
[330973196,1719977437061,-1198.0,0.00018668,2]
[330973197,1719977437071,-36479.072,0.00018668,2]
[330973198,1719977437080,-1658.0,0.00018668,2]
[330973199,1719977437090,-291.0,0.00018668,2]
[330973200,1719977437100,-153.58809814,0.00018695,2]
[330973201,1719977437109,-1763.46180014,0.00018717,2]
[330973203,1719977437118,-150.45550808,0.00018734,2]
[330973205,1719977437128,-654.98256356,0.00018775,2]
[330973207,1719977437137,-150.45550808,0.00018782,2]
[330973209,1719977437147,-172.84248885,0.00018785,2]
[330973211,1719977437157,-156.17,0.00018794,2]
[330973212,1719977437167,-654.98256356,0.00018817,2]
[330973213,1719977437176,-647.15955924,0.00018817,2]
[330973214,1719977437186,-254.54281508,0.00018842,2]
[330973215,1719977437197,-162.95,0.00018849,30]
[330973216,1719977437206,-381.22605199,0.00018851,2]
[330973217,1719977437215,-503.30632763,0.00018864,2]
[330973218,1719977437224,-155.30947103,0.00018864,2]
[330973219,1719977437234,-155.0,0.00018864,2]
[330973220,1719977437244,-152.97159455,0.00018867,2]
[330973221,1719977437254,-154.01077245,0.00018869,2]
[330973222,1719977437263,-152.97159455,0.00018892,2]
[330973223,1719977437274,-556.18686537,0.00018899,2]
[330973224,1719977437283,-623.01916795,0.00018899,2]
[330973225,1719977437292,-152.26339483,0.00018922,2]
[330973226,1719977437302,-150.45550808,0.00018954,2]
[330973227,1719977437312,-155.04468759,0.00018957,2]
[330973228,1719977437321,-647.15955924,0.00018961,2]
[330973229,1719977437331,-156.17,0.00018982,2]
[330973230,1719977437341,-332.88004729,0.00018982,2]
[330973231,1719977437352,-172.84248885,0.00018985,2]
[330973232,1719977437362,-151.77989859,0.00018989,2]
[330973233,1719977437372,-150.45550808,0.0001899,2]
[330973234,1719977437382,-4926.08854231,0.00018999,2]
[330973235,1719977437393,-227.12084219,0.00018999,2]
[330973236,1719977437402,-251.5542779,0.00018999,2]
[330973237,1719977437412,-251.06687635,0.00018999,2]
[330973238,1719977437422,-5688.53338554,0.00019,2]
[330973239,1719977437435,-562.4996314,0.00019,2]
[330973240,1719977437447,-382.31751455,0.00019,2]
[330973241,1719977437512,-546.53616094,0.00019,2]
[330973242,1719977437524,-2820.11330757,0.00019,2]
[330973243,1719977437534,-654.98256356,0.00019029,2]
[330973244,1719977437544,-179.3043869,0.00019048,2]
[330973245,1719977437554,-151.0669482,0.00019054,2]
[330973246,1719977437567,-245.53506859,0.00019059,2]
[330973247,1719977437579,-9.00774649,0.00019059,2]
[330973248,1719977437588,-474.74245113,0.00019069,2]
[330973249,1719977437599,-150.45550808,0.00019082,2]
[330973250,1719977437608,-166.66666668,0.00019084,2]
[330973251,1719977437617,-5.90361399,0.00019135,2]
[330973252,1719977437628,-153.67982305,0.00019135,2]
[330973253,1719977437639,-654.98256356,0.00019159,2]
[330973254,1719977437651,-153.58809814,0.0001917,2]
[330973255,1719977437661,-151.0669482,0.00019171,2]
[330973256,1719977437671,-155.0,0.00019177,2]
[330973257,1719977437680,-2000.0,0.00019178,2]
[330973258,1719977437689,-250.0,0.00019178,2]
[330973259,1719977437700,-283.55008595,0.00019197,2]
[330973260,1719977437710,-153.58809814,0.000192,2]